[Event "GrandPrix_30.05"]
[Site "Chess.com"]
[Date "2020.05.30"]
[Round "6"]
[White "2346PL"]
[Black "Sporty207"]
[Result "1/2-1/2"]
[WhiteElo "2092"]
[BlackElo "2200"]
[TimeControl "600+2"]
[EndTime "10:47:00 PDT"]
[Termination "Game drawn by agreement"]

1. d4 {[%clk 0:10:01.9]} 1... d5 {[%clk 0:09:53.8]} 2. Nf3 {[%clk 0:10:02]} 2...
Nf6 {[%clk 0:09:54.2]} 3. c3 {[%clk 0:10:02.5]} 3... c5 {[%clk 0:09:54.2]} 4.
Bf4 {[%clk 0:10:01.7]} 4... Nc6 {[%clk 0:09:54.9]} 5. e3 {[%clk 0:10:02.6]} 5...
Qb6 {[%clk 0:09:56.1]} 6. Qc1 {[%clk 0:10:02.7]} 6... Nh5 {[%clk 0:09:53.3]} 7.
Bg3 {[%clk 0:10:02.4]} 7... Bf5 {[%clk 0:09:45.3]} 8. Nbd2 {[%clk 0:10:02.5]}
8... Nxg3 {[%clk 0:09:36.5]} 9. hxg3 {[%clk 0:10:03.3]} 9... h6 {[%clk
0:09:29.1]} 10. Be2 {[%clk 0:09:58.5]} 10... e6 {[%clk 0:09:27.5]} 11. O-O
{[%clk 0:09:53.6]} 11... Rc8 {[%clk 0:09:22.7]} 12. Nb3 {[%clk 0:09:39.6]} 12...
c4 {[%clk 0:09:22.1]} 13. Nbd2 {[%clk 0:09:40.3]} 13... Qd8 {[%clk 0:09:22.2]}
14. e4 {[%clk 0:09:32.5]} 14... dxe4 {[%clk 0:09:15.5]} 15. Ne1 {[%clk
0:09:13.9]} 15... b5 {[%clk 0:09:12.1]} 16. a4 {[%clk 0:09:13.7]} 16... a6
{[%clk 0:09:08.1]} 17. axb5 {[%clk 0:09:14.5]} 17... axb5 {[%clk 0:09:09.5]} 18.
Nc2 {[%clk 0:07:35.7]} 18... Be7 {[%clk 0:09:04.5]} 19. b3 {[%clk 0:07:16.4]}
19... cxb3 {[%clk 0:09:02.4]} 20. Nxb3 {[%clk 0:07:17.8]} 20... b4 {[%clk
0:09:03.7]} 21. c4 {[%clk 0:07:14.1]} 21... O-O {[%clk 0:09:03.6]} 22. Rd1
{[%clk 0:07:05.2]} 22... Bg5 {[%clk 0:08:48.3]} 23. Qb2 {[%clk 0:06:31.8]} 23...
Qc7 {[%clk 0:08:34.9]} 24. Ra4 {[%clk 0:06:12.3]} 24... Rfd8 {[%clk 0:07:40.5]}
25. Nxb4 {[%clk 0:05:59.3]} 25... e3 {[%clk 0:07:38.1]} 26. f4 {[%clk
0:05:58.3]} 26... Bf6 {[%clk 0:07:38.6]} 27. Nxc6 {[%clk 0:05:47.3]} 27... Qxc6
{[%clk 0:07:39.4]} 28. Rb4 {[%clk 0:05:27.1]} 28... Rb8 {[%clk 0:07:32.8]} 29.
Rxb8 {[%clk 0:03:56.7]} 29... Rxb8 {[%clk 0:07:34.7]} 30. Qc3 {[%clk 0:03:58.2]}
30... Be4 {[%clk 0:07:15.3]} 31. Qxe3 {[%clk 0:03:54.5]} 31... Bc2 {[%clk
0:07:12.3]} 1/2-1/2

[Event "GrandPrix_30.05"]
[Site "Chess.com"]
[Date "2020.05.30"]
[Round "6"]
[White "troisi"]
[Black "Paulz64"]
[Result "0-1"]
[WhiteElo "1701"]
[BlackElo "2219"]
[TimeControl "600+2"]
[EndTime "10:47:11 PDT"]
[Termination "Paulz64 won by resignation"]

1. e4 {[%clk 0:09:54.6]} 1... c5 {[%clk 0:09:59.9]} 2. c3 {[%clk 0:09:46.6]}
2... Nf6 {[%clk 0:10:00]} 3. e5 {[%clk 0:09:45.7]} 3... Nd5 {[%clk 0:10:00.9]}
4. d4 {[%clk 0:09:46.2]} 4... cxd4 {[%clk 0:10:02.1]} 5. cxd4 {[%clk 0:09:47.1]}
5... d6 {[%clk 0:10:01.9]} 6. Nf3 {[%clk 0:09:46.4]} 6... Nc6 {[%clk 0:09:59.4]}
7. Bc4 {[%clk 0:09:45.2]} 7... e6 {[%clk 0:10:00.3]} 8. Qe2 {[%clk 0:09:43.8]}
8... Be7 {[%clk 0:09:58.7]} 9. O-O {[%clk 0:09:42.5]} 9... O-O {[%clk
0:09:58.8]} 10. Bxd5 {[%clk 0:09:25.6]} 10... exd5 {[%clk 0:09:58.8]} 11. Nc3
{[%clk 0:09:27.5]} 11... dxe5 {[%clk 0:09:57.9]} 12. dxe5 {[%clk 0:09:25.8]}
12... d4 {[%clk 0:09:49.4]} 13. Rd1 {[%clk 0:09:10.4]} 13... Bg4 {[%clk
0:09:38.7]} 14. Bf4 {[%clk 0:09:05.8]} 14... Qa5 {[%clk 0:09:15.2]} 15. Nb5
{[%clk 0:07:25.3]} 15... Bxf3 {[%clk 0:08:42]} 16. gxf3 {[%clk 0:07:23]} 16...
Rad8 {[%clk 0:08:14.1]} 17. Nd6 {[%clk 0:07:04.8]} 17... Bxd6 {[%clk 0:08:10.7]}
18. exd6 {[%clk 0:07:06.7]} 18... Rfe8 {[%clk 0:07:48.8]} 19. Qd3 {[%clk
0:06:20.4]} 19... Re6 {[%clk 0:06:40.8]} 20. a3 {[%clk 0:06:00.5]} 20... Qd5
{[%clk 0:06:34]} 21. Re1 {[%clk 0:05:35.5]} 21... Ne5 {[%clk 0:05:39.7]} 22. Qe4
{[%clk 0:04:01.3]} 22... Nxf3+ {[%clk 0:05:34.6]} 23. Qxf3 {[%clk 0:04:00]}
23... Qxf3 {[%clk 0:05:34.9]} 24. Bg3 {[%clk 0:03:58.6]} 24... h5 {[%clk
0:05:30]} 25. Rxe6 {[%clk 0:03:41.8]} 25... fxe6 {[%clk 0:05:29.8]} 0-1

[Event "GrandPrix_30.05"]
[Site "Chess.com"]
[Date "2020.05.30"]
[Round "6"]
[White "StephenDedalus83"]
[Black "Vuk2000"]
[Result "0-1"]
[WhiteElo "2058"]
[BlackElo "2214"]
[TimeControl "600+2"]
[EndTime "10:47:12 PDT"]
[Termination "Vuk2000 won by resignation"]

1. e4 {[%clk 0:10:01.9]} 1... e6 {[%clk 0:10:00.6]} 2. d4 {[%clk 0:10:02.5]}
2... d5 {[%clk 0:10:01.4]} 3. Nc3 {[%clk 0:10:04]} 3... Bb4 {[%clk 0:10:01.8]}
4. e5 {[%clk 0:10:04.7]} 4... c5 {[%clk 0:10:02.6]} 5. a3 {[%clk 0:10:06.1]}
5... Bxc3+ {[%clk 0:10:03.1]} 6. bxc3 {[%clk 0:10:08]} 6... Ne7 {[%clk
0:10:04.6]} 7. Qg4 {[%clk 0:10:08.1]} 7... Qc7 {[%clk 0:10:05.3]} 8. Bd3 {[%clk
0:10:08.9]} 8... c4 {[%clk 0:10:05.6]} 9. Be2 {[%clk 0:10:08.5]} 9... Nf5 {[%clk
0:10:06.2]} 10. Nf3 {[%clk 0:10:08.6]} 10... Nc6 {[%clk 0:10:06.2]} 11. Nh4
{[%clk 0:10:09.6]} 11... Nce7 {[%clk 0:10:05.7]} 12. Nxf5 {[%clk 0:10:10.6]}
12... Nxf5 {[%clk 0:10:05.8]} 13. h4 {[%clk 0:10:12.2]} 13... Bd7 {[%clk
0:10:02.1]} 14. h5 {[%clk 0:10:13.2]} 14... Ba4 {[%clk 0:09:59.3]} 15. Ra2
{[%clk 0:10:10.9]} 15... h6 {[%clk 0:09:34.6]} 16. Qh3 {[%clk 0:10:02.5]} 16...
a5 {[%clk 0:09:06.8]} 17. g4 {[%clk 0:10:01.6]} 17... Ne7 {[%clk 0:09:06.8]} 18.
f4 {[%clk 0:10:02.4]} 18... Qd7 {[%clk 0:08:54.8]} 19. O-O {[%clk 0:09:52.6]}
19... g6 {[%clk 0:08:23.1]} 20. Rb2 {[%clk 0:09:44.1]} 20... Bc6 {[%clk
0:07:56.6]} 21. Bd2 {[%clk 0:09:42.5]} 21... O-O-O {[%clk 0:07:35.4]} 22. Kh2
{[%clk 0:09:38.7]} 22... Rdf8 {[%clk 0:07:18.7]} 23. Be1 {[%clk 0:09:29.4]}
23... Qe8 {[%clk 0:06:43.2]} 24. Bg3 {[%clk 0:09:16.9]} 24... gxh5 {[%clk
0:06:18.6]} 25. Qxh5 {[%clk 0:09:16.7]} 25... f5 {[%clk 0:06:12.5]} 26. Qxe8+
{[%clk 0:09:16.8]} 26... Rxe8 {[%clk 0:06:06.2]} 27. Bh4 {[%clk 0:09:17.5]}
27... Ng6 {[%clk 0:05:52.7]} 28. Bf6 {[%clk 0:09:17.2]} 28... Rhg8 {[%clk
0:05:44.6]} 29. gxf5 {[%clk 0:09:13.8]} 29... exf5 {[%clk 0:05:45.3]} 30. Bh5
{[%clk 0:09:14.5]} 30... Ref8 {[%clk 0:04:59.6]} 31. Rf2 {[%clk 0:09:14.3]}
31... Kd7 {[%clk 0:04:55]} 32. Rb1 {[%clk 0:09:12.8]} 32... Ne7 {[%clk
0:04:51.4]} 33. Rg1 {[%clk 0:08:06.2]} 33... Rxg1 {[%clk 0:04:43.2]} 34. Kxg1
{[%clk 0:08:06.9]} 34... Rg8+ {[%clk 0:04:43.3]} 35. Kf1 {[%clk 0:08:07.3]}
35... Ke6 {[%clk 0:04:28.9]} 36. Rg2 {[%clk 0:07:32.5]} 36... Rxg2 {[%clk
0:04:19.3]} 37. Kxg2 {[%clk 0:07:34.4]} 37... Nc8 {[%clk 0:03:54.1]} 38. Bd8
{[%clk 0:07:26.5]} 38... b6 {[%clk 0:03:51.6]} 39. Kg3 {[%clk 0:07:25.1]} 39...
Ba4 {[%clk 0:03:45.1]} 40. Bd1 {[%clk 0:07:25.1]} 40... Kd7 {[%clk 0:03:45.5]}
41. Bf6 {[%clk 0:07:25.1]} 41... Na7 {[%clk 0:03:45.9]} 42. Kh4 {[%clk
0:07:23.5]} 42... Nb5 {[%clk 0:03:44.1]} 43. Kh5 {[%clk 0:07:23.7]} 43... Nxc3
{[%clk 0:03:39]} 44. Bf3 {[%clk 0:07:24.2]} 44... Bxc2 {[%clk 0:03:39]} 45. Kg6
{[%clk 0:07:25.1]} 45... Ke6 {[%clk 0:03:34.2]} 46. Kg7 {[%clk 0:07:25.7]} 46...
Bd1 {[%clk 0:03:33.9]} 0-1

[Event "GrandPrix_30.05"]
[Site "Chess.com"]
[Date "2020.05.30"]
[Round "6"]
[White "PotapovaM"]
[Black "Keks2017"]
[Result "1/2-1/2"]
[WhiteElo "2204"]
[BlackElo "2345"]
[TimeControl "600+2"]
[EndTime "10:47:38 PDT"]
[Termination "Game drawn by agreement"]

1. d4 {[%clk 0:10:01.9]} 1... d6 {[%clk 0:10:00.4]} 2. e4 {[%clk 0:10:02.5]}
2... Nf6 {[%clk 0:10:00.6]} 3. Nc3 {[%clk 0:10:03.9]} 3... g6 {[%clk 0:10:01]}
4. Bg5 {[%clk 0:09:41.2]} 4... Bg7 {[%clk 0:09:59.8]} 5. e5 {[%clk 0:09:37.3]}
5... Nfd7 {[%clk 0:09:59.1]} 6. exd6 {[%clk 0:09:37.4]} 6... cxd6 {[%clk
0:09:59.1]} 7. Qd2 {[%clk 0:09:39]} 7... Nf6 {[%clk 0:09:59.6]} 8. Nf3 {[%clk
0:09:34.3]} 8... O-O {[%clk 0:09:59.1]} 9. Be2 {[%clk 0:09:02.9]} 9... Nc6
{[%clk 0:09:55.6]} 10. O-O {[%clk 0:08:59.6]} 10... Bf5 {[%clk 0:09:52]} 11.
Rfe1 {[%clk 0:08:28.4]} 11... Re8 {[%clk 0:09:28.7]} 12. h3 {[%clk 0:07:50.9]}
12... Rc8 {[%clk 0:07:44.9]} 13. a3 {[%clk 0:07:42.5]} 13... a6 {[%clk
0:07:25.4]} 14. Bd3 {[%clk 0:07:21.8]} 14... Bxd3 {[%clk 0:07:23]} 15. Qxd3
{[%clk 0:07:23.7]} 15... Na5 {[%clk 0:07:21.9]} 16. b3 {[%clk 0:07:04.3]} 16...
Qc7 {[%clk 0:07:17.3]} 17. Bxf6 {[%clk 0:06:23.6]} 17... Qxc3 {[%clk 0:07:11.2]}
18. Qxc3 {[%clk 0:06:18]} 18... Rxc3 {[%clk 0:07:11]} 19. Bxe7 {[%clk
0:05:55.3]} 19... Rxc2 {[%clk 0:07:08.4]} 20. Bxd6 {[%clk 0:05:46.2]} 20...
Rxe1+ {[%clk 0:06:41.2]} 21. Rxe1 {[%clk 0:05:48.1]} 21... h6 {[%clk 0:06:40.6]}
22. Re8+ {[%clk 0:05:13.9]} 22... Kh7 {[%clk 0:06:40.1]} 23. Re7 {[%clk
0:04:11.3]} 23... Kg8 {[%clk 0:06:32.1]} 24. Ne5 {[%clk 0:03:54.9]} 24... Nxb3
{[%clk 0:06:28]} 25. d5 {[%clk 0:03:14]} 1/2-1/2

[Event "GrandPrix_30.05"]
[Site "Chess.com"]
[Date "2020.05.30"]
[Round "6"]
[White "vpantev"]
[Black "jacky72"]
[Result "0-1"]
[WhiteElo "2538"]
[BlackElo "2378"]
[TimeControl "600+2"]
[EndTime "10:47:59 PDT"]
[Termination "jacky72 won by resignation"]

1. d4 {[%clk 0:10:01.9]} 1... Nf6 {[%clk 0:10:00.2]} 2. Nf3 {[%clk 0:10:02.1]}
2... d5 {[%clk 0:09:58.5]} 3. c4 {[%clk 0:10:02]} 3... c6 {[%clk 0:09:59.9]} 4.
Qb3 {[%clk 0:10:00.7]} 4... g6 {[%clk 0:09:51]} 5. Bf4 {[%clk 0:09:54.6]} 5...
Bg7 {[%clk 0:09:51.9]} 6. e3 {[%clk 0:09:54.8]} 6... O-O {[%clk 0:09:52.6]} 7.
Nc3 {[%clk 0:09:48]} 7... a6 {[%clk 0:09:49.8]} 8. a4 {[%clk 0:09:34.5]} 8...
Qa5 {[%clk 0:09:23.8]} 9. Be2 {[%clk 0:08:33.5]} 9... dxc4 {[%clk 0:09:21.4]}
10. Bxc4 {[%clk 0:08:33.1]} 10... b5 {[%clk 0:09:21.4]} 11. Be2 {[%clk
0:08:28.4]} 11... Be6 {[%clk 0:09:21.1]} 12. Qc2 {[%clk 0:08:00.8]} 12... b4
{[%clk 0:09:09.4]} 13. Nb1 {[%clk 0:08:00.9]} 13... Nd5 {[%clk 0:08:30.2]} 14.
Be5 {[%clk 0:07:21.7]} 14... f6 {[%clk 0:08:16.2]} 15. Bg3 {[%clk 0:06:51.1]}
15... Bf5 {[%clk 0:07:50.9]} 16. e4 {[%clk 0:05:42.4]} 16... b3+ {[%clk
0:07:50.5]} 17. Qd2 {[%clk 0:05:42.7]} 17... Nb4 {[%clk 0:07:50.5]} 18. Bc4+
{[%clk 0:05:39.7]} 18... Kh8 {[%clk 0:07:44.9]} 19. exf5 {[%clk 0:05:30.8]}
19... Nc2+ {[%clk 0:07:42.4]} 20. Ke2 {[%clk 0:05:25.3]} 20... Qxf5 {[%clk
0:07:34.1]} 21. Nc3 {[%clk 0:04:59]} 21... Nxa1 {[%clk 0:07:33.9]} 22. Rxa1
{[%clk 0:04:58.8]} 22... e5 {[%clk 0:07:35.3]} 23. dxe5 {[%clk 0:04:45.7]} 23...
fxe5 {[%clk 0:07:35.2]} 24. Ng5 {[%clk 0:04:39.8]} 24... Qg4+ {[%clk 0:07:28]}
25. Ke1 {[%clk 0:04:19.6]} 25... Qxc4 {[%clk 0:07:27.3]} 26. Rd1 {[%clk
0:04:09.3]} 26... Ra7 {[%clk 0:07:13.3]} 27. Qe3 {[%clk 0:03:51.8]} 27... Re7
{[%clk 0:07:01.7]} 28. h4 {[%clk 0:03:43.6]} 28... Nd7 {[%clk 0:06:53.8]} 29. h5
{[%clk 0:03:42.7]} 29... Nf6 {[%clk 0:06:33.5]} 30. hxg6 {[%clk 0:03:28]} 30...
hxg6 {[%clk 0:06:25.7]} 31. f3 {[%clk 0:03:27.7]} 31... Nh5 {[%clk 0:05:45.5]}
32. Bh2 {[%clk 0:03:17.9]} 32... Qh4+ {[%clk 0:05:41.3]} 0-1

[Event "GrandPrix_30.05"]
[Site "Chess.com"]
[Date "2020.05.30"]
[Round "6"]
[White "rusuvlad95"]
[Black "vagpat"]
[Result "1-0"]
[WhiteElo "2121"]
[BlackElo "2200"]
[TimeControl "600+2"]
[EndTime "10:48:02 PDT"]
[Termination "rusuvlad95 won by resignation"]

1. e4 {[%clk 0:10:01.9]} 1... c5 {[%clk 0:09:58.9]} 2. Nf3 {[%clk 0:10:02.5]}
2... d6 {[%clk 0:09:58.7]} 3. d4 {[%clk 0:10:03.7]} 3... cxd4 {[%clk 0:09:59.8]}
4. Nxd4 {[%clk 0:10:05.6]} 4... Nf6 {[%clk 0:10:00.9]} 5. Nc3 {[%clk 0:10:06.2]}
5... e6 {[%clk 0:10:02.4]} 6. g3 {[%clk 0:10:02]} 6... a6 {[%clk 0:09:59.4]} 7.
Bg2 {[%clk 0:10:02.6]} 7... Qc7 {[%clk 0:10:00.9]} 8. O-O {[%clk 0:10:01.8]}
8... Be7 {[%clk 0:10:02.4]} 9. Kh1 {[%clk 0:10:00.8]} 9... O-O {[%clk
0:10:03.3]} 10. a4 {[%clk 0:10:00.3]} 10... Nc6 {[%clk 0:10:03.6]} 11. f4 {[%clk
0:09:22.5]} 11... Bd7 {[%clk 0:10:03.1]} 12. Nb3 {[%clk 0:09:19.3]} 12... Rac8
{[%clk 0:10:00.6]} 13. Qe2 {[%clk 0:09:14]} 13... Nb4 {[%clk 0:09:37.2]} 14. Be3
{[%clk 0:09:11.3]} 14... Qc4 {[%clk 0:08:54.4]} 15. Qd1 {[%clk 0:08:24.3]} 15...
d5 {[%clk 0:08:16.2]} 16. Nd2 {[%clk 0:08:20.8]} 16... Qc7 {[%clk 0:08:08.7]}
17. e5 {[%clk 0:08:21.8]} 17... Ne8 {[%clk 0:08:08.1]} 18. a5 {[%clk 0:08:20.9]}
18... f6 {[%clk 0:07:34.1]} 19. Bb6 {[%clk 0:08:19]} 19... Qb8 {[%clk
0:07:17.9]} 20. Nf3 {[%clk 0:08:16.4]} 20... Nc6 {[%clk 0:07:17.4]} 21. Nxd5
{[%clk 0:07:28.5]} 21... exd5 {[%clk 0:06:19.2]} 22. Qxd5+ {[%clk 0:07:25.3]}
22... Rf7 {[%clk 0:06:20.5]} 23. Qxd7 {[%clk 0:07:14.9]} 23... Bc5 {[%clk
0:05:15.5]} 24. Qe6 {[%clk 0:07:12.3]} 24... Bxb6 {[%clk 0:04:59.7]} 25. axb6
{[%clk 0:07:14.2]} 25... h6 {[%clk 0:03:58.3]} 26. Rad1 {[%clk 0:07:02.3]} 26...
Kf8 {[%clk 0:03:09.2]} 27. Nh4 {[%clk 0:06:46.6]} 27... Ne7 {[%clk 0:02:58.9]}
28. Rd7 {[%clk 0:06:38.7]} 1-0

[Event "GrandPrix_30.05"]
[Site "Chess.com"]
[Date "2020.05.30"]
[Round "6"]
[White "Meri-Arabidze"]
[Black "Matibar"]
[Result "1/2-1/2"]
[WhiteElo "2304"]
[BlackElo "2605"]
[TimeControl "600+2"]
[EndTime "10:48:04 PDT"]
[Termination "Game drawn by agreement"]

1. d4 {[%clk 0:10:01.9]} 1... f5 {[%clk 0:09:52.3]} 2. e4 {[%clk 0:10:00.6]}
2... fxe4 {[%clk 0:09:52.4]} 3. Nc3 {[%clk 0:10:01]} 3... Nf6 {[%clk 0:09:45.7]}
4. Bg5 {[%clk 0:10:01.7]} 4... c6 {[%clk 0:09:33.9]} 5. Qe2 {[%clk 0:09:21.1]}
5... d5 {[%clk 0:09:31.9]} 6. f3 {[%clk 0:09:21.6]} 6... Bf5 {[%clk 0:09:29.8]}
7. O-O-O {[%clk 0:09:15]} 7... Nbd7 {[%clk 0:09:26.4]} 8. Kb1 {[%clk 0:08:35.5]}
8... e6 {[%clk 0:09:01.1]} 9. fxe4 {[%clk 0:08:25.4]} 9... dxe4 {[%clk 0:09:03]}
10. h3 {[%clk 0:08:14.8]} 10... Bb4 {[%clk 0:08:57.6]} 11. g4 {[%clk 0:08:00.9]}
11... Bxc3 {[%clk 0:08:35.1]} 12. Qc4 {[%clk 0:06:49.3]} 12... Nb6 {[%clk
0:06:07.4]} 13. Qxc3 {[%clk 0:06:45.4]} 13... Bg6 {[%clk 0:06:08.9]} 14. Ne2
{[%clk 0:06:00.3]} 14... Nfd5 {[%clk 0:05:27.2]} 15. Bxd8 {[%clk 0:04:49.7]}
15... Nxc3+ {[%clk 0:05:26]} 16. Nxc3 {[%clk 0:04:49]} 16... Rxd8 {[%clk
0:05:27.6]} 17. Bg2 {[%clk 0:04:33.9]} 17... Nd5 {[%clk 0:05:21.5]} 18. Rhe1
{[%clk 0:04:23.4]} 18... e3 {[%clk 0:03:43.1]} 1/2-1/2

[Event "GrandPrix_30.05"]
[Site "Chess.com"]
[Date "2020.05.30"]
[Round "6"]
[White "switlave"]
[Black "weplaychess09"]
[Result "1-0"]
[WhiteElo "2261"]
[BlackElo "2081"]
[TimeControl "600+2"]
[EndTime "10:48:11 PDT"]
[Termination "switlave won by checkmate"]

1. d4 {[%clk 0:10:01.9]} 1... Nf6 {[%clk 0:10:00]} 2. Bf4 {[%clk 0:09:56]} 2...
e6 {[%clk 0:09:58.8]} 3. e3 {[%clk 0:09:57]} 3... d5 {[%clk 0:09:59.3]} 4. Nf3
{[%clk 0:09:31]} 4... Bd6 {[%clk 0:09:58.9]} 5. Bg3 {[%clk 0:09:26.3]} 5... O-O
{[%clk 0:09:59.5]} 6. Nbd2 {[%clk 0:09:23.5]} 6... c5 {[%clk 0:09:58.5]} 7. c3
{[%clk 0:09:24.2]} 7... Qc7 {[%clk 0:09:57.1]} 8. Bxd6 {[%clk 0:09:06.2]} 8...
Qxd6 {[%clk 0:09:57]} 9. Ne5 {[%clk 0:09:07.8]} 9... Nbd7 {[%clk 0:09:50.5]} 10.
f4 {[%clk 0:09:08.1]} 10... b6 {[%clk 0:09:51.4]} 11. Bd3 {[%clk 0:09:04.6]}
11... a5 {[%clk 0:09:51.3]} 12. Qe2 {[%clk 0:08:59.8]} 12... Bb7 {[%clk
0:09:19.8]} 13. a4 {[%clk 0:08:57.3]} 13... Ne4 {[%clk 0:09:18.8]} 14. Nxe4
{[%clk 0:06:44.6]} 14... dxe4 {[%clk 0:09:18.1]} 15. Bb5 {[%clk 0:06:46]} 15...
Nf6 {[%clk 0:09:07.1]} 16. Rd1 {[%clk 0:06:43]} 16... Rfd8 {[%clk 0:09:03.5]}
17. O-O {[%clk 0:06:38.5]} 17... Rac8 {[%clk 0:08:53.1]} 18. f5 {[%clk
0:06:30.7]} 18... exf5 {[%clk 0:08:51.5]} 19. Rxf5 {[%clk 0:06:29.8]} 19... Qe6
{[%clk 0:08:39.6]} 20. Rdf1 {[%clk 0:06:26.1]} 20... Rd5 {[%clk 0:08:23.3]} 21.
Bc4 {[%clk 0:05:55.3]} 21... cxd4 {[%clk 0:08:10.5]} 22. Bxd5 {[%clk 0:05:08.9]}
22... Bxd5 {[%clk 0:08:01.2]} 23. exd4 {[%clk 0:05:09.3]} 23... Rc7 {[%clk
0:07:53.3]} 24. h3 {[%clk 0:04:48.1]} 24... h6 {[%clk 0:07:41.4]} 25. Qe3 {[%clk
0:04:36.3]} 25... Bb3 {[%clk 0:07:35.9]} 26. Qg3 {[%clk 0:04:12.5]} 26... Kh7
{[%clk 0:07:25.1]} 27. Qh4 {[%clk 0:04:02.4]} 27... Ng8 {[%clk 0:06:45.4]} 28.
Qxe4 {[%clk 0:03:53.5]} 28... Kh8 {[%clk 0:06:28.2]} 29. Nxf7+ {[%clk
0:03:39.9]} 29... Rxf7 {[%clk 0:06:28.6]} 30. Qxe6 {[%clk 0:03:40.1]} 30... Bxe6
{[%clk 0:06:27.1]} 31. Rxf7 {[%clk 0:03:40.9]} 31... Bxf7 {[%clk 0:06:29]} 32.
Rxf7 {[%clk 0:03:42]} 32... Nf6 {[%clk 0:06:28.8]} 33. Rxf6 {[%clk 0:03:35.8]}
33... gxf6 {[%clk 0:06:29.5]} 34. Kf2 {[%clk 0:03:37.2]} 34... Kg7 {[%clk
0:06:30.6]} 35. Kf3 {[%clk 0:03:36.8]} 35... f5 {[%clk 0:06:31.1]} 36. Kf4
{[%clk 0:03:36.9]} 36... Kf6 {[%clk 0:06:32.7]} 37. d5 {[%clk 0:03:37.7]} 37...
h5 {[%clk 0:06:34.4]} 38. h4 {[%clk 0:03:38.2]} 38... Kg6 {[%clk 0:06:34.9]} 39.
Ke5 {[%clk 0:03:38.8]} 39... Kf7 {[%clk 0:06:36]} 40. Kxf5 {[%clk 0:03:39.4]}
40... Ke7 {[%clk 0:06:37.5]} 41. g4 {[%clk 0:03:38.4]} 41... hxg4 {[%clk
0:06:38.1]} 42. Kxg4 {[%clk 0:03:39.1]} 42... Kd6 {[%clk 0:06:39.6]} 43. h5
{[%clk 0:03:38.2]} 43... Kxd5 {[%clk 0:06:41.2]} 44. h6 {[%clk 0:03:39.3]} 44...
Kc4 {[%clk 0:06:41.7]} 45. h7 {[%clk 0:03:40.2]} 45... Kb3 {[%clk 0:06:43.3]}
46. h8=Q {[%clk 0:03:40.8]} 46... Kxb2 {[%clk 0:06:44.5]} 47. Qf6 {[%clk
0:03:39.1]} 47... Kb3 {[%clk 0:06:45.1]} 48. Qxb6+ {[%clk 0:03:39.3]} 48... Kxa4
{[%clk 0:06:46.7]} 49. c4 {[%clk 0:03:38.4]} 49... Ka3 {[%clk 0:06:47.8]} 50. c5
{[%clk 0:03:38]} 50... a4 {[%clk 0:06:49.7]} 51. c6 {[%clk 0:03:38.4]} 51... Ka2
{[%clk 0:06:51.2]} 52. c7 {[%clk 0:03:37.8]} 52... a3 {[%clk 0:06:53.1]} 53.
c8=Q {[%clk 0:03:36.2]} 53... Ka1 {[%clk 0:06:55]} 54. Qc2 {[%clk 0:03:31.9]}
54... a2 {[%clk 0:06:55.8]} 55. Qc1# {[%clk 0:03:26.1]} 1-0

[Event "GrandPrix_30.05"]
[Site "Chess.com"]
[Date "2020.05.30"]
[Round "6"]
[White "payto1"]
[Black "DanielDardha2005"]
[Result "1/2-1/2"]
[WhiteElo "2188"]
[BlackElo "2328"]
[TimeControl "600+2"]
[EndTime "10:48:18 PDT"]
[Termination "Game drawn by agreement"]

1. d4 {[%clk 0:10:00.4]} 1... e6 {[%clk 0:10:00]} 2. c4 {[%clk 0:10:00.7]} 2...
Nf6 {[%clk 0:09:59.7]} 3. Nc3 {[%clk 0:10:01.3]} 3... Bb4 {[%clk 0:10:00.3]} 4.
e3 {[%clk 0:10:01.8]} 4... O-O {[%clk 0:10:00.9]} 5. Bd3 {[%clk 0:10:02.4]} 5...
c5 {[%clk 0:09:56.6]} 6. Ne2 {[%clk 0:10:02.7]} 6... cxd4 {[%clk 0:09:57.1]} 7.
exd4 {[%clk 0:10:03.8]} 7... d5 {[%clk 0:09:58.5]} 8. cxd5 {[%clk 0:10:05.1]}
8... Nxd5 {[%clk 0:09:51.8]} 9. O-O {[%clk 0:10:05.5]} 9... Nc6 {[%clk
0:09:53.2]} 10. Nxd5 {[%clk 0:10:05.9]} 10... Qxd5 {[%clk 0:09:54.1]} 11. a3
{[%clk 0:10:03.9]} 11... Be7 {[%clk 0:09:48.7]} 12. Qc2 {[%clk 0:10:03.4]} 12...
h6 {[%clk 0:09:36]} 13. Rd1 {[%clk 0:10:01.9]} 13... Rd8 {[%clk 0:09:24.4]} 14.
Bh7+ {[%clk 0:10:01.7]} 14... Kh8 {[%clk 0:09:20.9]} 15. Be4 {[%clk 0:10:01]}
15... Qd7 {[%clk 0:08:47.1]} 16. Bf4 {[%clk 0:09:05.7]} 16... Qe8 {[%clk
0:08:35.3]} 17. Rac1 {[%clk 0:09:05.3]} 17... Bd7 {[%clk 0:08:35.9]} 18. Qb3
{[%clk 0:08:57.9]} 18... Na5 {[%clk 0:08:35]} 19. Qe3 {[%clk 0:08:49.9]} 19...
f5 {[%clk 0:07:51.5]} 20. Bf3 {[%clk 0:08:17.7]} 20... Rdc8 {[%clk 0:07:22.8]}
21. Be5 {[%clk 0:06:18.6]} 21... Kh7 {[%clk 0:07:18.7]} 22. Nf4 {[%clk
0:05:35.6]} 22... Rxc1 {[%clk 0:06:25.3]} 23. Rxc1 {[%clk 0:05:33.5]} 23... Rc8
{[%clk 0:06:26.2]} 24. Bh5 {[%clk 0:04:51.2]} 24... Rxc1+ {[%clk 0:06:25.9]} 25.
Qxc1 {[%clk 0:04:52.4]} 25... Qc8 {[%clk 0:06:27.8]} 26. Qxc8 {[%clk 0:04:47.9]}
26... Bxc8 {[%clk 0:06:29.7]} 27. Bf7 {[%clk 0:04:49.2]} 27... Nc4 {[%clk
0:06:17.3]} 28. b3 {[%clk 0:04:11.4]} 28... Nxe5 {[%clk 0:05:59.4]} 29. dxe5
{[%clk 0:04:13.3]} 29... Bxa3 {[%clk 0:05:14.2]} 30. Bxe6 {[%clk 0:03:58.1]}
1/2-1/2